{"text_format":"3","workbook":"xlsx","n_sheets":4,"sheets":["Проміжні етапи","Стратегія","Відомості","Дані діаграми"],"not_rendered":{"charts":1,"defined_names":2},"read":"whole","date_system":"1900"}

{"sheet":"Проміжні етапи","index":0,"n_rows":27,"n_cols":5,"rows_kept":27}
["Створіть стратегію, ввівши важливі проміжні етапи та дії на цьому аркуші.\nУ клітинці C1 наведено заголовок аркуша. \nІнформацію про використання цього аркуша, зокрема вказівки для невізуальних екранів, наведено на аркуші \"Відомості\".\nСтовпець A містить інші вказівки.",null,"Проміжні етапи"]
["Заголовки таблиці розміщено в клітинках C2–E2. Скористайтеся параметрами Сортувати й фільтрувати, щоб відсортувати або знайти певні записи.\nУ таблицю, починаючи з клітинки C3, введіть проміжні етапи з датами та встановіть позиції, щоб розташувати етапи на діаграмі.\nСтовпець B приховано. На діаграмі, створеній на основі цих даних, можна переглядати етапи часової шкали за допомогою смуги прокручування. Стовпець B допомагає визначити, які проміжні етапи слід відобразити на діаграмі після переміщення повзунка на смузі прокручування. \nУвага! Якщо видалити або змінити вміст стовпця B, цілісність діаграми в цій книзі може порушитися.","№","Позиція","Дата","Проміжний етап"]
["У клітинку C1 введіть Позиція для розташування дати та проміжного етапу на діаграмі. Введіть додатне число від 1 до 3, щоб розташувати проміжний етап на діаграмі над часовою шкалою. Введіть від’ємне число від 1 до 3, щоб розташувати проміжний етап на діаграмі під часовою шкалою.\nУ стовпці D та E таблиці введіть Дата та Проміжний етап або дію.\nПовторіть ці кроки для кожного нового рядка в таблиці праворуч.\nУ рядках 3–26 наведено зразок даних. Щоб створити власну стратегію, змініть або видаліть зразок вмісту.\nПерейдіть до клітинки A27, щоб отримати подальші вказівки.",{"$f":"ROW($A1)","v":1},1,{"$f":"TODAY()","v":"2018-06-29"},"Початок"]
[null,{"$f":"ROW($A2)","v":2},-2,{"$f":"D3+10","v":"2018-07-09"},"Аналіз проблеми\nдія 1"]
[null,3,1,{"$f":"D4+20","v":"2018-07-29"},"Техніко-економічне обґрунтування\nдія 1\nдія 2"]
[null,4,-1,{"$f":"D5+30","v":"2018-08-28"},"Огляд презентації"]
[null,5,{"v":-0.5,"d":"-1"},{"$f":"D6+40","v":"2018-10-07"},"Запуск проекту\nдія 1\nдія 2"]
[null,6,2,{"$f":"D7+50","v":"2018-11-26"},"Унесення коректив\nдія 1\nдія 2\nдія 3"]
[null,7,{"v":0.5,"d":"1"},{"$f":"D8+60","v":"2019-01-25"},"Залучення зацікавлених сторін"]
[null,8,-1,{"$f":"D9+70","v":"2019-04-05"},"Вибір ресурсів"]
[null,9,{"v":0.5,"d":"1"},{"$f":"D10+80","v":"2019-06-24"},"Створення команди\nдія 1 "]
[null,10,-2,{"$f":"D11+90","v":"2019-09-22"},"Початок роботи команди\nдія 1 \nдія 2\nдія 3\nдія 4"]
[null,11,3,{"$f":"D12+100","v":"2019-12-31"},"Початок збирання даних"]
[null,12,-1,{"$f":"D13+90","v":"2020-03-30"},"Аналіз даних"]
[null,13,1,{"$f":"D14+80","v":"2020-06-18"},"Планування"]
[null,14,1,{"$f":"D15+70","v":"2020-08-27"},"Перевірка концепції"]
[null,15,-3,{"$f":"D16+60","v":"2020-10-26"},"Тестування й аналіз"]
[null,16,-2,{"$f":"D17+50","v":"2020-12-15"},"Повторне планування"]
[null,17,2,{"$f":"D18+40","v":"2021-01-24"},"Повторна розробка"]
[null,18,-1,{"$f":"D19+30","v":"2021-02-23"},"Тестування й аналіз"]
[null,19,1,{"$f":"D20+20","v":"2021-03-15"},"Повторне планування"]
[null,20,-3,{"$f":"D21+10","v":"2021-03-25"},"Повторна розробка"]
[null,21,2,{"$f":"D22+20","v":"2021-04-14"},"Остаточне випробування"]
[null,22,1,{"$f":"D23+30","v":"2021-05-14"},"Випробування у виробничих умовах"]
[null,23,-3,{"$f":"D24+40","v":"2021-06-23"},"Оцінювання"]
[null,24,-2,{"$f":"D25+50","v":"2021-08-12"},"Випуск на ринок"]
["Щоб додати більше рядків до таблиці проміжних етапів стратегії, вставте новий рядок над поточним.\nБільше на цьому аркуші немає вказівок.",null,"Щоб додати більше проміжних етапів, вставте нові рядки над поточним."]

{"sheet":"Стратегія","index":1,"n_rows":3,"n_cols":4,"rows_kept":3}
["Цей аркуш містить діаграму, що відображає проміжні етапи, введені на аркуші \"Проміжні етапи\". \nРоки вказано в клітинках B2, C2 та D2, до яких застосовано стиль \"Заголовок 3\".\nОдночасно на діаграмі відображаються десять проміжних етапів. \nПереходьте стратегією за допомогою смуги прокручування в клітинках B4–D4.\nРоки часової шкали наведено в клітинках B3–D3.\nБільше на цьому аркуші немає вказівок."]
[]
[null,{"$f":"'Дані діаграми'!B20","v":2018},{"$f":"'Дані діаграми'!B21","v":""},{"$f":"'Дані діаграми'!B22","v":2019}]

{"sheet":"Відомості","index":2,"n_rows":5,"n_cols":1,"rows_kept":5}
["Відомості про цю книгу"]
["Указівки для невізуальних екранів"]
["Ця книга складається з чотирьох аркушів. \n\nПроміжні етапи\nСтратегія\nВідомості\nДані діаграми (приховано)\n\nУказівки наведені в стовпці A, починаючи з клітинки A1 кожного аркуша. Їх приховано. Усі кроки інструкцій містять відомості про відповідний рядок. Кожен наступний крок продовжується в клітинці A2, A3 тощо. Це не стосується випадків, коли явно не передбачено інше, наприклад якщо на наступному кроці не вказано перейти до клітинки A6. \n\nПрихований текст не друкуватиметься.\n\nЩоб вилучити ці вказівки з будь-якого аркуша, просто видаліть стовпець A.\n"]
["У цій стратегії на основі позицій створюється діаграма проміжних етапів і дій. За допомогою позиції можна вказати важливість проміжного етапу або дії. Просто змініть значення відповідно до важливості. Наприклад, третій проміжний етап може бути важливіший, ніж другий. Щоб показати це на діаграмі, просто встановіть для позиції третього проміжного етапу вище значення, ніж для другого.  \n"]
["Це остання вказівка на цьому аркуші."]

{"sheet":"Дані діаграми","index":3,"n_rows":26,"n_cols":4,"rows_kept":26,"hidden":true}
["Цей аркуш містить дані для створення динамічної діаграми. Не видаляйте його!\nЯкщо видалити цей аркуш, вміст книги припинить динамічно змінюватися.","Не видаляйте цей аркуш!"]
["Клітинка B2 містить заголовок таблиці.","Вміст динамічної діаграми"]
["Клітинки B3–D3 містять заголовки стовпців таблиці. \nЦя таблиця оновлюється автоматично на основі вмісту, введеного на аркуші \"Проміжні етапи\".\nУвага! Якщо змінити або видалити вміст цієї таблиці, діаграма \"Стратегія\" на аркуші \"Стратегія\" може припинити автоматично оновлюватися.\nПерейдіть до клітинки A15, щоб отримати подальші вказівки.","Дата","Події","Позиція"]
[null,{"$f":"IFERROR(IF(LEN('Проміжні етапи'!D3)=0,\"\",INDEX(ПроміжніЕтапиСтратегії[],'Проміжні етапи'!$B3+$B$17,3)),\"\")","v":"2018-06-29"},{"$f":"IFERROR(IF(LEN('Проміжні етапи'!E3)=0,\"\",INDEX(ПроміжніЕтапиСтратегії[],'Проміжні етапи'!$B3+$B$17,4)),\"\")","v":"Початок"},{"$f":"IFERROR(INDEX(ПроміжніЕтапиСтратегії[],'Проміжні етапи'!$B3+$B$17,2),\"\")","v":1}]
[null,{"$f":"IFERROR(IF(LEN('Проміжні етапи'!D4)=0,\"\",INDEX(ПроміжніЕтапиСтратегії[],'Проміжні етапи'!$B4+$B$17,3)),\"\")","v":"2018-07-09"},{"$f":"IFERROR(IF(LEN('Проміжні етапи'!E4)=0,\"\",INDEX(ПроміжніЕтапиСтратегії[],'Проміжні етапи'!$B4+$B$17,4)),\"\")","v":"Аналіз проблеми\nдія 1"},{"$f":"IFERROR(INDEX(ПроміжніЕтапиСтратегії[],'Проміжні етапи'!$B4+$B$17,2),\"\")","v":-2}]
[null,{"$f":"IFERROR(IF(LEN('Проміжні етапи'!D5)=0,\"\",INDEX(ПроміжніЕтапиСтратегії[],'Проміжні етапи'!$B5+$B$17,3)),\"\")","v":"2018-07-29"},{"$f":"IFERROR(IF(LEN('Проміжні етапи'!E5)=0,\"\",INDEX(ПроміжніЕтапиСтратегії[],'Проміжні етапи'!$B5+$B$17,4)),\"\")","v":"Техніко-економічне обґрунтування\nдія 1\nдія 2"},{"$f":"IFERROR(INDEX(ПроміжніЕтапиСтратегії[],'Проміжні етапи'!$B5+$B$17,2),\"\")","v":1}]
[null,{"$f":"IFERROR(IF(LEN('Проміжні етапи'!D6)=0,\"\",INDEX(ПроміжніЕтапиСтратегії[],'Проміжні етапи'!$B6+$B$17,3)),\"\")","v":"2018-08-28"},{"$f":"IFERROR(IF(LEN('Проміжні етапи'!E6)=0,\"\",INDEX(ПроміжніЕтапиСтратегії[],'Проміжні етапи'!$B6+$B$17,4)),\"\")","v":"Огляд презентації"},{"$f":"IFERROR(INDEX(ПроміжніЕтапиСтратегії[],'Проміжні етапи'!$B6+$B$17,2),\"\")","v":-1}]
[null,{"$f":"IFERROR(IF(LEN('Проміжні етапи'!D7)=0,\"\",INDEX(ПроміжніЕтапиСтратегії[],'Проміжні етапи'!$B7+$B$17,3)),\"\")","v":"2018-10-07"},{"$f":"IFERROR(IF(LEN('Проміжні етапи'!E7)=0,\"\",INDEX(ПроміжніЕтапиСтратегії[],'Проміжні етапи'!$B7+$B$17,4)),\"\")","v":"Запуск проекту\nдія 1\nдія 2"},{"$f":"IFERROR(INDEX(ПроміжніЕтапиСтратегії[],'Проміжні етапи'!$B7+$B$17,2),\"\")","v":-0.5}]
[null,{"$f":"IFERROR(IF(LEN('Проміжні етапи'!D8)=0,\"\",INDEX(ПроміжніЕтапиСтратегії[],'Проміжні етапи'!$B8+$B$17,3)),\"\")","v":"2018-11-26"},{"$f":"IFERROR(IF(LEN('Проміжні етапи'!E8)=0,\"\",INDEX(ПроміжніЕтапиСтратегії[],'Проміжні етапи'!$B8+$B$17,4)),\"\")","v":"Унесення коректив\nдія 1\nдія 2\nдія 3"},{"$f":"IFERROR(INDEX(ПроміжніЕтапиСтратегії[],'Проміжні етапи'!$B8+$B$17,2),\"\")","v":2}]
[null,{"$f":"IFERROR(IF(LEN('Проміжні етапи'!D9)=0,\"\",INDEX(ПроміжніЕтапиСтратегії[],'Проміжні етапи'!$B9+$B$17,3)),\"\")","v":"2019-01-25"},{"$f":"IFERROR(IF(LEN('Проміжні етапи'!E9)=0,\"\",INDEX(ПроміжніЕтапиСтратегії[],'Проміжні етапи'!$B9+$B$17,4)),\"\")","v":"Залучення зацікавлених сторін"},{"$f":"IFERROR(INDEX(ПроміжніЕтапиСтратегії[],'Проміжні етапи'!$B9+$B$17,2),\"\")","v":0.5}]
[null,{"$f":"IFERROR(IF(LEN('Проміжні етапи'!D10)=0,\"\",INDEX(ПроміжніЕтапиСтратегії[],'Проміжні етапи'!$B10+$B$17,3)),\"\")","v":"2019-04-05"},{"$f":"IFERROR(IF(LEN('Проміжні етапи'!E10)=0,\"\",INDEX(ПроміжніЕтапиСтратегії[],'Проміжні етапи'!$B10+$B$17,4)),\"\")","v":"Вибір ресурсів"},{"$f":"IFERROR(INDEX(ПроміжніЕтапиСтратегії[],'Проміжні етапи'!$B10+$B$17,2),\"\")","v":-1}]
[null,{"$f":"IFERROR(IF(LEN('Проміжні етапи'!D11)=0,\"\",INDEX(ПроміжніЕтапиСтратегії[],'Проміжні етапи'!$B11+$B$17,3)),\"\")","v":"2019-06-24"},{"$f":"IFERROR(IF(LEN('Проміжні етапи'!E11)=0,\"\",INDEX(ПроміжніЕтапиСтратегії[],'Проміжні етапи'!$B11+$B$17,4)),\"\")","v":"Створення команди\nдія 1 "},{"$f":"IFERROR(INDEX(ПроміжніЕтапиСтратегії[],'Проміжні етапи'!$B11+$B$17,2),\"\")","v":0.5}]
[null,{"$f":"IFERROR(IF(LEN('Проміжні етапи'!D12)=0,\"\",INDEX(ПроміжніЕтапиСтратегії[],'Проміжні етапи'!$B12+$B$17,3)),\"\")","v":"2019-09-22"},{"$f":"IFERROR(IF(LEN('Проміжні етапи'!E12)=0,\"\",INDEX(ПроміжніЕтапиСтратегії[],'Проміжні етапи'!$B12+$B$17,4)),\"\")","v":"Початок роботи команди\nдія 1 \nдія 2\nдія 3\nдія 4"},{"$f":"IFERROR(INDEX(ПроміжніЕтапиСтратегії[],'Проміжні етапи'!$B12+$B$17,2),\"\")","v":-2}]
[]
["Прокручування часової шкали відбувається на основі значення кроку. Клітинка B15 містить назву цієї можливості.\nУ клітинках B16 і B17 наведено таблицю із заголовком та одним значенням.\nПерейдіть до клітинки A19, щоб отримати подальші вказівки.","Можливість прокручування"]
[null,"Крок зсуву рядків"]
[null,0]
[]
["Діаграма \"Стратегія\" відображає роки часової шкали, узяті зі списку проміжних етапів. \nКлітинка B19 містить назву цього розділу – \"Рік\". \nЗначення років створюються автоматично в клітинках C20–C22.\nУвага! Якщо видалити або змінити ці роки, точність даних на діаграмі \"Стратегія\" може змінитися.\nПерейдіть до клітинки A24, щоб отримати подальші вказівки.","Рік"]
[null,{"$f":"IFERROR(YEAR(B4),\"\")","v":2018},"<-- рік початкового етапу стратегії розвитку"]
[null,{"$f":"IFERROR(IF(YEAR($B$9)=$B$20,\"\",YEAR($B$9)),\"\")","v":""},"<-- рік середнього етапу стратегії розвитку. Якщо це той самий рік, що й на початковому етапі, його можна не вказувати."]
[null,{"$f":"IFERROR(IF(YEAR($B$13)=$B$20,\"\",YEAR($B$13)),\"\")","v":2019},"<-- рік кінцевого етапу стратегії розвитку. Якщо це той самий рік, що й на початковому етапі, його можна не вказувати."]
[]
["Кола на діаграмі \"Стратегія\" містять дати, узяті з таблиці \"Вміст динамічної діаграми\" на цьому аркуші. Ці дати – це перша дата в клітинці C24, дата середини в клітинці C25 і остання дата в клітинці C26.\nБільше на цьому аркуші немає вказівок.","Перша дата",{"$f":"B4","v":"2018-06-29"}]
[null,"Дата середини",{"$f":"B9","v":"2018-11-26"}]
[null,"Остання дата",{"$f":"B13","v":"2019-09-22"}]